fUSD/lending_fUSD_20240218
["ID","MTS","AMOUNT","RATE_DAILY","PERIOD"]
[314397734,1708279849278,-26160.42115816,0.000389,2]
[314397735,1708279849288,-150.1,0.000389,2]
[314397736,1708279849298,-569.88,0.00038904,2]
[314397737,1708279849308,-113995.43005938,0.0003897,2]
[314397738,1708279849477,-42139.74400277,0.0003897,2]
[314397739,1708279849486,-5000.0,0.00038986,2]
[314397740,1708279849495,-5000.0,0.00038986,2]
[314397741,1708279849506,-200.0,0.00038987,3]
[314397742,1708279849515,-100000.0,0.00039,9]
[314397743,1708279849524,-300.0,0.00039,40]
[314397744,1708279849533,-1000.0,0.00039,2]
[314397745,1708279849545,-7215.03818562,0.00039,30]
[314397746,1708279849555,-172.09989745,0.00039,2]
[314397747,1708279849564,-413.14060866,0.00039,2]
[314397748,1708279849573,-10000.0,0.00039,7]
[314397749,1708279849582,-3000.0,0.00039,37]
[314397750,1708279849591,-300.0,0.00039,6]
[314397751,1708279849601,-151.0,0.00039,10]
[314397752,1708279849610,-3000.0,0.0003901,37]
[314397753,1708279849620,-1654.37044982,0.00039012,12]
[314397754,1708279849629,-5489.112257,0.0003902,37]
[314397755,1708279849639,-151.0,0.00039056,7]
[314397756,1708279849648,-1000.0,0.00039087,2]
[314397757,1708279849658,-361.493235,0.000391,28]
[314397758,1708279849667,-200.0,0.000392,13]
[314397759,1708279849677,-151.0,0.000392,11]
[314397760,1708279849687,-1654.37044982,0.00039213,12]
[314397761,1708279849696,-170.58222612,0.00039215,9]
[314397762,1708279849706,-1695.13557136,0.00039215,2]
[314397763,1708279849716,-1019.57801559,0.00039215,2]
[314397764,1708279849725,-1169.30337127,0.00039219,2]
[314397765,1708279849735,-1000.0,0.0003926,2]
[314397766,1708279849746,-896.81493071,0.00039265,2]
[314397767,1708279849755,-5000.0,0.00039292,2]
[314397768,1708279849766,-18203.59085566,0.00039297,2]
[314397769,1708279849776,-335.78739081,0.00039299,2]
[314397770,1708279849785,-464.46151292,0.00039299,2]
[314397771,1708279849796,-1153906.39897697,0.000393,2]
[314397772,1708279849805,-150.0,0.00039366,2]
[314397773,1708279849815,-151.0,0.000394,11]
[314397774,1708279849824,-152.52706515,0.00039406,4]
[314397775,1708279849834,-854.82,0.00039452,2]
[314397776,1708279849843,-419.19,0.00039452,2]
[314397777,1708279849854,-6000.0,0.000395,4]
[314397778,1708279849863,-1000.0,0.000395,2]
[314397779,1708279849873,-300.0,0.000395,6]
[314397780,1708279849883,-919.3083714,0.0003952,2]
[314397781,1708279849893,-50000.0,0.00039527,30]
[314397782,1708279849903,-1000.0,0.00039544,2]
[314397783,1708279849913,-305.78,0.0003955,2]
[314397784,1708279849923,-151.0,0.000396,11]
[314397785,1708279849932,-22572.96240371,0.000396,2]
[314397786,1708279849942,-151.0,0.00039604,7]
[314397787,1708279849951,-154.4,0.00039607,2]
[314397788,1708279849961,-2798.1,0.0003963,2]
[314397789,1708279849970,-5000.0,0.00039649,2]
[314397790,1708279849980,-400.0,0.0003967,2]
[314397791,1708279849989,-300.0,0.0003967,2]
[314397792,1708279849998,-3818.83685117,0.0003968,30]
[314397793,1708279850008,-1979.27079043,0.0003968,30]
[314397794,1708279850017,-2313.17427472,0.0003968,30]
[314397795,1708279850026,-1367.84491234,0.0003968,30]
[314397796,1708279850036,-2600.51297938,0.00039697,2]
[314397797,1708279850047,-1500.0,0.000397,2]
[314397798,1708279850057,-6731.14,0.000397,3]
[314397799,1708279850066,-6731.14,0.000397,3]
[314397800,1708279850075,-6731.14,0.000397,3]
[314397801,1708279850084,-6731.14,0.000397,3]
[314397802,1708279850093,-6731.14,0.000397,3]
[314397803,1708279850103,-6731.14,0.000397,3]
[314397804,1708279850113,-6731.14,0.000397,3]
[314397805,1708279850122,-6731.14,0.000397,3]
[314397806,1708279850132,-6731.14,0.000397,3]
[314397807,1708279850142,-6731.14,0.000397,3]
[314397808,1708279850151,-6731.14,0.000397,3]
[314397809,1708279850161,-6731.14,0.000397,3]
[314397810,1708279850170,-6731.14,0.000397,3]
[314397811,1708279850180,-6731.14,0.000397,3]
[314397812,1708279850189,-6731.14,0.000397,3]
[314397813,1708279850200,-6731.14,0.000397,3]
[314397814,1708279850209,-6731.14,0.000397,3]
[314397815,1708279850218,-6731.14,0.000397,3]
[314397816,1708279850228,-6731.14,0.000397,3]
[314397817,1708279850237,-6731.14,0.000397,3]
[314397818,1708279850246,-152.36,0.000397,3]
[314397819,1708279850255,-152.36,0.000397,3]
[314397820,1708279850265,-152.36,0.000397,3]
[314397821,1708279850274,-152.36,0.000397,3]
[314397822,1708279850284,-152.36,0.000397,3]
[314397823,1708279850295,-152.36,0.000397,3]
[314397824,1708279850305,-152.36,0.000397,3]
[314397825,1708279850314,-152.36,0.000397,3]
[314397826,1708279850323,-152.36,0.000397,3]
[314397827,1708279850332,-152.36,0.000397,3]
[314397828,1708279850342,-152.36,0.000397,3]
[314397829,1708279850351,-1153.1691932,0.000397,2]
[314397830,1708279850360,-1313.2976734,0.000397,2]
[314397831,1708279850370,-1010.13153904,0.000398,4]
[314397832,1708279850379,-2147.26910796,0.000398,7]
[314397833,1708279850388,-151.0,0.000398,11]
[314397834,1708279850398,-15267.88796518,0.0003988,2]
[314397835,1708279850408,-806.51,0.00039895,2]
[314397836,1708279850417,-335.78739081,0.00039896,2]
[314397837,1708279850427,-464.46151292,0.00039896,2]
[314397838,1708279850437,-61368.56116,0.00039897,30]
[314397839,1708279850446,-1000.0,0.000399,10]
[314397840,1708279850457,-2000.0,0.000399,10]
[314397841,1708279850470,-58000.0,0.000399,5]
[314397842,1708279850479,-2555.39719232,0.000399,2]
[314397843,1708279850489,-2974.79420542,0.000399,2]
[314397844,1708279850498,-195507.24379964,0.0003993,2]
[314397845,1708279850508,-183.0,0.00039951,2]
[314397846,1708279850517,-154.0,0.00039955,2]
[314397847,1708279850527,-177.0,0.00039955,2]
[314397848,1708279850536,-400.0,0.0003997,2]
[314397849,1708279850547,-300.0,0.0003997,2]
[314397850,1708279850556,-200.0,0.00039987,4]
[314397851,1708279850565,-5250.0,0.0003999,30]
[314397852,1708279850574,-405.18,0.00039994,2]
[314397853,1708279850583,-2600.51297938,0.00039997,2]
[314397854,1708279850592,-126736.00260311,0.00039998,4]
[314397855,1708279850602,-372.22910915,0.00039999,31]
[314397856,1708279850612,-500.0,0.00039999,31]
[314397857,1708279850621,-426.8293958,0.00039999,31]
[314397858,1708279850631,-159.52676107,0.00039999,31]
[314397859,1708279850640,-500.0,0.00039999,31]
[314397860,1708279850650,-457.99707582,0.00039999,31]
[314397861,1708279850659,-624.85588964,0.00039999,31]
[314397862,1708279850669,-580.25039661,0.00039999,31]
[314397863,1708279850678,-335.78739081,0.00039999,2]
[314397864,1708279850688,-464.46151292,0.00039999,2]
[314397865,1708279850698,-335.78739081,0.00039999,2]
[314397866,1708279850708,-464.46151292,0.00039999,2]
[314397867,1708279850717,-335.78739081,0.00039999,2]
[314397868,1708279850727,-464.46151292,0.00039999,2]
[314397869,1708279850736,-335.78739081,0.00039999,2]
[314397870,1708279850747,-464.46151292,0.00039999,2]
[314397871,1708279850757,-335.78739081,0.00039999,2]
[314397872,1708279850767,-464.46151292,0.00039999,2]
[314397873,1708279850777,-335.78739081,0.00039999,2]
[314397874,1708279850787,-464.46151292,0.00039999,2]
[314397875,1708279850798,-335.78739081,0.00039999,2]
[314397876,1708279850807,-464.46151292,0.00039999,2]
[314397877,1708279850816,-335.78739081,0.00039999,2]
[314397878,1708279850825,-464.46151292,0.00039999,2]
[314397879,1708279850835,-335.78739081,0.00039999,2]
[314397880,1708279850845,-464.46151292,0.00039999,2]
[314397881,1708279850854,-335.78739081,0.00039999,2]
[314397882,1708279850863,-464.46151292,0.00039999,2]
[314397883,1708279850873,-335.78739081,0.00039999,2]
[314397884,1708279850882,-464.46151292,0.00039999,2]
[314397885,1708279850893,-335.78739081,0.00039999,2]
[314397886,1708279850936,-464.46151292,0.00039999,2]
[314397887,1708279850946,-335.78739081,0.00039999,2]
[314397888,1708279850955,-464.46151292,0.00039999,2]
[314397889,1708279850964,-335.78739081,0.00039999,2]
[314397890,1708279850973,-464.46151292,0.00039999,2]
[314397891,1708279850982,-335.78739081,0.00039999,2]
[314397892,1708279850992,-464.46151292,0.00039999,2]
[314397893,1708279851001,-100000.0,0.0004,10]
[314397894,1708279851011,-132058.7921127,0.0004,30]
[314397895,1708279851025,-311.16,0.0004,30]
[314397896,1708279851037,-325.14395,0.0004,30]
[314397897,1708279851049,-8259.34420829,0.0004,30]
[314397898,1708279851071,-21.775,0.0004,30]
[314397899,1708279851086,-500.0,0.00037768,4]
[314397900,1708279851095,-490053.80483312,0.0004,30]
[314397901,1708279851104,-90076.80233334,0.0004,30]
[314397902,1708279851116,-1967.92520498,0.0004,30]
[314397903,1708279851127,-2248.46080941,0.0004,30]
[314397904,1708279851138,-3153.81405,0.0004,30]
[314397905,1708279851150,-1387.69415765,0.0004,30]
[314397906,1708279851161,-4567.871706,0.0004,30]
[314397907,1708279851173,-1503.3049995,0.0004,30]
[314397908,1708279851184,-1172.97608,0.0004,30]
[314397909,1708279863726,205.0,0.000241,2]
[314397910,1708280121486,550.0,0.00025,3]
[314397911,1708280482275,-500.0,0.00026992,2]
[314397912,1708280482295,-155.0,0.00026993,2]
[314397913,1708280482316,-600.0,0.00027,3]
[314397930,1708281032218,-155.0,0.00028999,2]
[314397931,1708281032227,-650.0,0.00029,3]
[314397932,1708281032237,-234.20695576,0.00032556,4]
[314397933,1708281032246,-3000.0,0.00032557,2]
[314397934,1708281032255,-152.0,0.00032584,3]
[314397935,1708281032264,-155.0,0.00033991,4]
[314397936,1708281032274,-25891.82752491,0.00033999,4]
[314397937,1708281032283,-155.0,0.00034,4]
[314397938,1708281032292,-900.0,0.00034,35]
[314397939,1708281032301,-175.03441539,0.00034054,2]
[314397940,1708281032309,-1609.0,0.000341,2]
[314397941,1708281032318,-802.69,0.00034154,2]
[314397942,1708281032327,-190.873204,0.00034881,2]
[314397943,1708281032336,-2314.629537,0.00034881,2]
[314397944,1708281032346,-150.0,0.00034967,2]
[314397945,1708281032356,-308.57771977,0.00035,36]
[314397946,1708281032365,-2314.629537,0.00035317,2]
[314397947,1708281032374,-175.03441535,0.00035366,2]
[314397948,1708281032383,-881.00770292,0.00035599,4]
[314397949,1708281032393,-1000.0,0.000356,2]
[314397950,1708281032402,-542.62392033,0.00035616,2]
[314397951,1708281032411,-1756.76,0.00035616,2]
[314397952,1708281032420,-1756.76,0.00035616,2]
[314397953,1708281032429,-500.0,0.00035616,2]
[314397954,1708281032439,-500.0,0.00035616,2]
[314397955,1708281032448,-2314.629537,0.00035753,2]
[314397956,1708281032458,-151.0,0.00035847,120]
[314397957,1708281032467,-2725.76,0.00035854,2]
[314397958,1708281032476,-500.0,0.00035885,2]
[314397959,1708281032486,-150.0,0.00035964,2]
[314397960,1708281032495,-2000.0,0.00035967,2]
[314397961,1708281032504,-200.0,0.00035979,2]
[314397962,1708281032514,-200.0,0.00035991,2]
[314397963,1708281032523,-500.0,0.00035991,2]
[314397964,1708281032532,-23727.47143772,0.00035998,2]
[314397965,1708281032544,-172.52856228,0.00035998,2]
[314397966,1708281032553,-2705.0,0.00036009,2]
[314397967,1708281032562,-202.29,0.00036013,2]
[314397968,1708281032571,-204.0,0.00036013,2]
[314397969,1708281032581,-250.0,0.00036013,2]
[314397970,1708281032591,-250.0,0.00036013,111]
[314397971,1708281032599,-250.0,0.00036013,2]
[314397972,1708281032608,-192.51,0.00036013,120]
[314397973,1708281032617,-2065.43,0.00036023,2]
[314397974,1708281032626,-156.72,0.00036121,2]
[314397975,1708281032635,-2314.629537,0.00036189,2]
[314397976,1708281032645,-156.72,0.00036356,2]
[314397977,1708281032654,-802.69,0.00036418,2]
[314397978,1708281032663,-176.44,0.00036473,2]
[314397979,1708281032672,-151.0,0.00036579,30]
[314397980,1708281032681,-156.72,0.00036591,2]
[314397981,1708281032691,-2314.629537,0.00036625,2]
[314397982,1708281032700,-175.03441535,0.00036677,2]
[314397983,1708281032709,-1756.76,0.00036799,2]
[314397984,1708281032718,-156.72,0.00036827,2]
[314397985,1708281032727,-1735.07,0.0003695,2]
[314397986,1708281032737,-1000.0,0.00036988,2]
[314397987,1708281032746,-156.72,0.00037062,2]
[314397988,1708281032755,-666.0,0.00037099,2]
[314397989,1708281032764,-1756.76,0.00037099,2]
[314397990,1708281032773,-1756.76,0.00037099,2]
[314397991,1708281032782,-1756.76,0.00037099,2]
[314397992,1708281032793,-1756.76,0.00037099,2]
[314397993,1708281032802,-556.2527,0.000372,2]
[314397994,1708281032811,-156.72,0.00037297,2]
[314397995,1708281032821,-3000.0,0.000373,31]
[314397996,1708281032831,-5459.141233,0.0003731,31]
[314397997,1708281032840,-151.0,0.00037325,7]
[314397998,1708281032849,-2065.43,0.00037356,2]
[314397999,1708281032859,-1756.76,0.00037378,2]
[314398000,1708281032869,-947.68867162,0.000375,7]
[314398001,1708281032879,-156.72,0.00037533,2]
[314398002,1708281032889,-1756.76,0.0003762,2]
[314398003,1708281032898,-204.0,0.00037657,2]
[314398004,1708281032907,-176.44,0.00037688,2]
[314398005,1708281032917,-3000.0,0.000377,32]
[314398006,1708281032927,-2598.715503,0.000377,6]
[314398007,1708281032936,-200.0,0.000377,2]
[314398008,1708281032945,-618.8633982,0.000377,2]
[314398009,1708281032955,-3000.0,0.0003771,32]
[314398010,1708281032965,-5489.112257,0.0003772,32]
[314398011,1708281032974,-951.585,0.00037735,2]
[314398012,1708281032984,-1756.76,0.00037742,2]
[314398013,1708281032993,-747.90017061,0.00037757,2]
[314398014,1708281033002,-156.72,0.00037768,2]
[314398015,1708281033012,-1756.76,0.00037773,2]
[314398016,1708281033021,-1756.76,0.00037773,2]
[314398017,1708281033030,-2348.96440811,0.00037779,2]
[314398018,1708281033040,-1500.0,0.000378,2]
[314398019,1708281033049,-783.73,0.000378,2]
[314398020,1708281033058,-1756.76,0.00037817,2]
[314398021,1708281033067,-1756.76,0.00037853,2]
[314398022,1708281033076,-2017.7687,0.00037857,2]
[314398023,1708281033086,-1000.0,0.00037857,2]
[314398024,1708281033095,-2039.594,0.00037857,2]
[314398025,1708281033105,-1756.76,0.00037869,2]
[314398026,1708281033114,-1756.76,0.00037869,2]
[314398027,1708281033124,-1756.76,0.00037879,2]
[314398028,1708281033133,-1756.76,0.00037879,2]
[314398029,1708281033142,-1756.76,0.00037879,2]
[314398030,1708281033151,-1756.76,0.00037879,2]
[314398031,1708281033161,-1756.76,0.00037879,2]
[314398032,1708281033169,-702.30537054,0.00037879,2]
[314398033,1708281033187,-449.57833095,0.00037879,2]
[314398034,1708281033199,-604.87629851,0.00037879,2]
[314398035,1708281033208,-1756.76,0.00037879,2]
[314398036,1708281033218,-1756.94709134,0.00037879,2]
[314398037,1708281033227,-1000.0,0.00037893,10]
[314398038,1708281033236,-2837.00818864,0.00037893,3]
[314398039,1708281033252,-2394.64071904,0.00037893,3]
[314398040,1708281033262,-1000.0,0.00037893,10]
[314398041,1708281033271,-1000.0,0.00037893,10]
[314398042,1708281033280,-1000.0,0.00037893,10]
[314398043,1708281033290,-395.84083224,0.00037893,2]
[314398044,1708281033299,-6149.14736011,0.00037893,6]
[314398045,1708281033308,-1000.0,0.00037893,10]
[314398046,1708281033317,-1858.36735356,0.00037893,2]
[314398047,1708281033326,-5213.23788536,0.00037893,7]
[314398048,1708281033335,-1000.0,0.00037893,10]
[314398049,1708281033345,-1000.0,0.00037893,10]
[314398050,1708281033354,-1000.0,0.00037893,10]
[314398051,1708281033363,-1000.0,0.00037893,10]
[314398052,1708281033371,-3292.342377,0.00037893,3]
[314398053,1708281033380,-1000.0,0.00037893,10]
[314398054,1708281033391,-1986.9032546,0.00037893,5]
[314398055,1708281033407,-1542.92778105,0.00037893,5]
[314398056,1708281033416,-150.0,0.00037918,7]
[314398057,1708281033426,-500.0,0.00037956,2]
[314398058,1708281033434,-500.0,0.00037956,2]
[314398059,1708281033444,-500.0,0.00037956,2]
[314398060,1708281033453,-457.60102274,0.00037956,2]
[314398061,1708281033633,-500.0,0.00037956,2]
[314398062,1708281033643,-301.87486262,0.00037956,2]
[314398063,1708281033652,-10809.38878371,0.00037957,12]
[314398064,1708281033988,-622.2085362,0.00037957,12]
[314398065,1708281034048,-5442.18539446,0.00037957,12]
[314398066,1708281034060,-16013.57020745,0.00037957,12]
[314398067,1708281034069,-8591.82095083,0.00037957,12]
[314398068,1708281034079,-11548.60674961,0.00037957,12]
[314398069,1708281034089,-17598.89692384,0.00037957,12]
[314398070,1708281034099,-175.03441535,0.00037989,2]
[314398071,1708281034108,-155.0,0.00038,4]
[314398073,1708281034117,-237.320729,0.00038,2]
[314398075,1708281034126,-156.72,0.00038003,2]
[314398077,1708281034136,-2348.96440805,0.00038015,2]
[314398080,1708281034145,-151.0,0.00038087,4]
[314398082,1708281034154,-500.0,0.00038187,3]
[314398084,1708281034163,-500.0,0.00038195,3]
[314398085,1708281034173,-500.0,0.00038204,3]
[314398089,1708281034182,-2348.96440805,0.0003825,2]
[314398091,1708281034191,-614.93,0.0003831,2]
[314398094,1708281034200,-500.0,0.0003831,2]
[314398096,1708281034209,-610.87,0.0003831,2]
[314398098,1708281034218,-500.0,0.0003831,2]
[314398100,1708281034227,-347.94,0.00038356,2]
[314398103,1708281034238,-564.29,0.00038356,15]
[314398105,1708281034247,-150.0,0.00038356,2]
[314398107,1708281034256,-354.76,0.000384,2]
[314398108,1708281034265,-1000.0,0.000384,2]
[314398109,1708281034274,-2348.96440805,0.00038486,2]
[314398110,1708281034283,-200.0,0.00038575,5]
[314398111,1708281034292,-419.19,0.0003863,2]
[314398112,1708281034301,-419.19,0.0003863,2]
[314398113,1708281034310,-419.19,0.0003863,2]
[314398114,1708281034319,-217.63,0.0003863,2]
[314398115,1708281034328,-802.69,0.00038682,2]
[314398116,1708281034337,-2065.43,0.00038689,2]
[314398117,1708281034346,-618.8633982,0.000387,2]
[314398118,1708281034356,-2348.96440805,0.00038722,2]
[314398119,1708281034365,-305.18,0.000388,2]
[314398120,1708281034375,-151.0,0.00038864,2]
[314398121,1708281034384,-600.0,0.0003887,2]
[314398122,1708281034393,-176.44,0.00038904,2]
[314398123,1708281034402,-2348.96440805,0.00038957,2]
[314398124,1708281034412,-3000.0,0.00039,37]
[314398125,1708281034421,-3000.0,0.0003901,37]
[314398126,1708281034430,-5489.112257,0.0003902,37]
[314398127,1708281034439,-209.0,0.0003905,2]
[314398128,1708281034449,-206.0,0.0003905,2]
[314398129,1708281034458,-1461.19258712,0.00039059,2]
[314398130,1708281034467,-214.70050744,0.00039093,2]
[314398131,1708281034476,-168.31542616,0.00039093,9]
[314398132,1708281034486,-238.17683716,0.00039117,4]
[314398133,1708281034495,-730.9782341,0.00039118,4]
[314398134,1708281034503,-500.0,0.00039118,2]
[314398135,1708281034513,-500.0,0.00039118,2]
[314398136,1708281034522,-500.0,0.00039118,2]
[314398137,1708281034531,-500.0,0.00039118,2]
[314398138,1708281034541,-500.0,0.00039118,2]
[314398139,1708281034551,-500.0,0.00039118,2]
[314398140,1708281034560,-500.0,0.00039118,2]
[314398141,1708281034569,-500.0,0.00039118,2]
[314398142,1708281034578,-500.0,0.00039118,2]
[314398143,1708281034587,-245000.0,0.00039119,2]
[314398144,1708281034597,-218.40453947,0.00039189,2]
[314398145,1708281034606,-2348.96440805,0.00039193,2]
[314398146,1708281034615,-40878.91998763,0.00039199,5]
[314398147,1708281034628,-41421.6,0.00039199,5]
[314398148,1708281034639,-414.72000001,0.00039199,5]
[314398149,1708281034659,-737.8216654,0.00039199,5]
[314398150,1708281034670,-10861.68397736,0.00039199,5]
[314398151,1708281034679,-568.24090124,0.000392,2]
[314398152,1708281034689,-168.31542609,0.00039208,9]
[314398153,1708281034698,-16.75969531,0.00039218,2]
[314398165,1708281038232,-1000.0,0.00037893,10]
[314398166,1708281038242,-747.90017054,0.00037995,2]
[314398167,1708281038251,-483.24030469,0.00039218,2]
[314398168,1708281038261,-500.0,0.00039218,2]
[314398169,1708281038270,-500.0,0.00039218,2]
[314398170,1708281038279,-500.0,0.00039218,2]
[314398171,1708281038287,-359.32895941,0.00039218,2]
[314398172,1708281038301,-140.67104059,0.00039218,2]
[314398173,1708281038310,-500.0,0.00039218,2]
[314398174,1708281038319,-155.396,0.00039218,7]
[314398175,1708281038329,-1227.036,0.00039219,2]
[314398176,1708281038338,-17492.69835941,0.00039219,2]
[314398177,1708281038397,-82507.30164059,0.00039219,2]
[314398178,1708281038407,-1161.0181,0.00039219,2]
[314398179,1708281038421,-182.4043118,0.00039219,12]
[314398180,1708281038430,-152.52706515,0.00039219,3]
[314398181,1708281038440,-1000.0,0.0003926,2]
[314398182,1708281038450,-182.4043118,0.00039281,13]
[314398183,1708281038459,-94314.7456304,0.00039299,5]
[314398184,1708281038469,-5000.0,0.000393,3]
[314398185,1708281038479,-175.03441535,0.000393,2]
[314398186,1708281038488,-289.10609796,0.000393,2]
[314398187,1708281038498,-1602.44892264,0.000393,30]
[314398188,1708281038507,-240.52747998,0.000393,2]
[314398189,1708281038516,-1304.37775109,0.000393,2]
[314398190,1708281038526,-3351.77031632,0.000393,2]
[314398191,1708281038534,-1441.57495388,0.000393,2]
[314398192,1708281038543,-204.0,0.00039301,2]
[314398193,1708281038553,-500.0,0.00039308,2]
[314398194,1708281038562,-123110.62855257,0.00039308,3]
[314398195,1708281038571,-94314.7456304,0.00039309,5]
[314398196,1708281038580,-94314.7456304,0.00039309,5]
[314398197,1708281038590,-8605.83015486,0.00039318,2]
[314398198,1708281038600,-500.0,0.00039318,2]
[314398199,1708281038609,-500.0,0.00039318,2]
[314398200,1708281038619,-500.0,0.00039318,2]
[314398202,1708281038628,-500.0,0.00039318,2]
[314398203,1708281038637,-500.0,0.00039318,2]
[314398204,1708281038648,-477.12,0.00039318,2]
[314398205,1708281038657,-500.0,0.00039318,2]
[314398206,1708281038667,-500.0,0.00039318,2]
[314398207,1708281038676,-200000.0,0.00039319,30]
[314398209,1708281038688,-168.31542609,0.00039324,9]
[314398211,1708281038698,-568.2409012,0.00039335,2]
[314398212,1708281038708,-182.4043118,0.00039343,13]
[314398213,1708281038717,-150.0,0.00039366,2]
[314398214,1708281038727,-188629.491261,0.0003937,5]
[314398215,1708281038736,-500.0,0.0003938,2]
[314398216,1708281038745,-209.85,0.00039389,2]
[314398217,1708281038755,-500.0,0.00039389,2]
[314398218,1708281038764,-570.4213115,0.00039389,2]
[314398219,1708281038773,-500.0,0.00039389,2]
[314398220,1708281038783,-500.0,0.00039389,2]
[314398221,1708281038793,-500.0,0.00039389,2]
[314398222,1708281038807,-500.0,0.00039389,2]
[314398223,1708281038818,-172.04816573,0.00039389,2]
[314398224,1708281038827,-94314.7456304,0.0003939,5]
[314398225,1708281038836,-150.0,0.00039397,7]
[314398226,1708281038848,-150.0,0.00039397,7]
[314398227,1708281038857,-267.13,0.00039399,2]
[314398228,1708281038867,-500.0,0.00039399,2]
[314398229,1708281038878,-228.72,0.00039399,2]
[314398230,1708281038887,-500.0,0.00039399,2]
[314398231,1708281038896,-500.0,0.00039399,2]
[314398232,1708281038905,-500.0,0.00039399,2]
[314398233,1708281038915,-500.0,0.00039399,2]
[314398234,1708281038924,-500.0,0.00039399,2]
[314398235,1708281038933,-500.0,0.00039399,2]
[314398236,1708281038943,-500.0,0.00039399,2]
[314398237,1708281038952,-500.0,0.00039399,2]
[314398238,1708281038962,-514.04,0.00039399,2]
[314398239,1708281038975,-150.0,0.00039399,2]
[314398240,1708281038984,-185.78460517,0.00039399,2]
[314398241,1708281038994,-259423.40325738,0.000394,2]
[314398249,1708281040811,-354.76772244,0.00037957,12]
[314398251,1708281040824,-767.704883,0.00037957,12]
[314398256,1708281040869,-5981.79673786,0.00037957,12]
[314398259,1708281040879,-747.90017054,0.00038233,2]
[314398261,1708281040890,-7219.07605221,0.000394,2]
[314398263,1708281040928,-318.328976,0.000394,2]
[314398264,1708281040940,-144161.71093387,0.000394,2]
[314398265,1708281040986,-1404.55,0.000394,2]
[314398266,1708281040997,-417.48491259,0.000394,2]
[314398267,1708281041010,-25949.350545,0.000394,2]
[314398281,1708281045159,-666.17,0.000378,2]
[314398282,1708281045169,-747.90017054,0.00038471,2]
[314398283,1708281045179,-156.40609618,0.000394,2]
[314398284,1708281045193,-2433.305289,0.000394,2]
[314398285,1708281045277,-5207.3083574,0.000394,2]
[314398286,1708281045289,-303.54,0.000394,2]
[314398287,1708281045334,-346.74620445,0.000394,2]
[314398288,1708281045352,-1339.26328638,0.000394,2]
[314398289,1708281045370,-3392.35337584,0.000394,2]
[314398290,1708281045397,-503.96768438,0.000394,2]
[314398291,1708281045409,-302.0,0.000394,2]
[314398292,1708281045421,-5014.3093,0.000394,2]
[314398293,1708281045433,-3519.93191718,0.000394,2]
[314398294,1708281045510,-18890.75525322,0.000394,2]
[314398318,1708281046344,-3107.42475,0.000394,2]
[314398319,1708281046401,-4495.4918608,0.000394,2]
[314398320,1708281046414,-718.766,0.000394,2]
[314398321,1708281046426,-13716.49208799,0.000394,2]
[314398322,1708281046518,-1693.5649876,0.000394,2]
[314398323,1708281046531,-2638.20054226,0.000394,2]
[314398324,1708281046544,-1069.51230699,0.000394,2]
[314398325,1708281046555,-310.0765343,0.000394,2]
[314398378,1708282231528,-224.04406869,0.000328,2]
[314398379,1708282231537,-150.0,0.00032898,3]
[314398380,1708282231546,-663.60774787,0.00032899,4]
[314398381,1708282231558,-278.66008818,0.00032899,4]
[314398382,1708282231583,-1168.93293316,0.00032899,4]
[314398383,1708282231595,-1095.58699136,0.00032899,4]
[314398384,1708282231607,-450.0,0.00032899,4]
[314398385,1708282231643,-298.02890111,0.00032899,4]
[314398415,1708282237636,-5411.77649573,0.00032899,4]
[314398416,1708282237649,-10321.0707499,0.00032899,4]